Cogmind - Beta 16.1 @@@ ROGUE MODE // 2026.02.12 @ 12:48:50 Player: SunShine214 Result: Destroyed by S-10 Pest with Light Assault Rifle Performance ------------- Evolutions (2) 1000 Regions Visited (6) 1200 Robots Destroyed (38) 190 Value Destroyed (675) 675 Prototype IDs (24) 480 Alien Tech Used (0) 0 Bonus (449) 449 TOTAL SCORE: 3994 Bonus ------- Entered Garrisons 200 Aligned with FarCom 300 Friendly Fire -51 Cogmind --------- Core Integrity 0/550 Matter 16/300 Energy 99/100 System Corruption 0% Temperature Cool (0) Movement Core (50) Location -8/Garrison Parts ------- > --- POWER (1) -------- (None) > --- PROPULSION (4) --- (None) > --- UTILITY (4) ------ Hacking Suite > --- WEAPON (2) ------- (None) > --- INVENTORY (5) ---- Flight Unit Surge Thruster Signal Interpreter Force Booster Mining Laser Peak State ------------ > --- POWER ------------ Light Ion Engine > --- PROPULSION ------- Light Treads > --- UTILITY ---------- Small Storage Unit Light Armor Plating Hacking Suite Thief Drone Bay > --- WEAPON ----------- Rocket Launcher Powered Hammer > --- INVENTORY -------- Flight Unit Flight Unit Signal Interpreter Force Booster Trap Reconfigurator Grenade Launcher Mining Laser Plasma Cutter [Rating: 22] Favorites ----------- Power Light Ion Engine Engine Light Ion Engine Propulsion Light Treads Treads Light Treads Utility Small Storage Unit Device Improved Terrain Scanner Storage Small Storage Unit Hackware Hacking Suite Protection Light Armor Plating Weapon Grenade Launcher Energy Gun EM Pulse Gun Ballistic Gun Light Assault Rifle Launcher Grenade Launcher Special Weapon Mining Laser Impact Weapon Powered Hammer Build | -11 -10 -10 -10 -9 -8 -8 ------- Run | Yrd Mat Min Exi Min Mat Gar Slots Evolved 4 | . . . . . 4 . Power . | . . . . . . . Propulsion 2 | . . . . . 2 . Utility 2 | . . . . . 2 . Weapon . | . . . . . . . Parts Attached 19 | 7 8 . . 1 2 1 Power 3 | 1 2 . . . . . Engine 3 | 1 2 . . . . . Core . | . . . . . . . Reactor . | . . . . . . . Propulsion 3 | 2 1 . . . . . Treads 3 | 2 1 . . . . . Leg . | . . . . . . . Wheel . | . . . . . . . Hover . | . . . . . . . Flight . | . . . . . . . Utility 6 | 2 2 . . . 2 . Device 2 | 1 . . . . 1 . Storage 1 | 1 . . . . . . Processor . | . . . . . . . Hackware 1 | . . . . . 1 . Protection 2 | . 2 . . . . . Artifact . | . . . . . . . Weapon 7 | 2 3 . . 1 . 1 Energy Gun 2 | 1 1 . . . . . Energy Cannon . | . . . . . . . Ballistic Gun 1 | 1 . . . . . . Ballistic Cannon . | . . . . . . . Launcher 2 | . 1 . . 1 . . Special Weapon 1 | . 1 . . . . . Impact Weapon 1 | . . . . . . 1 Slashing Weapon . | . . . . . . . Piercing Weapon . | . . . . . . . Special Melee Weapon . | . . . . . . . Unidentified Prototypes 1 | . . . . . 1 . Corrupted Parts 1 | . 1 . . . . . System Corruption 2 | . 2 . . . . . Parts Lost 9 | . 5 1 . . . 3 Power 2 | . 1 . . . . 1 Propulsion 2 | . 2 . . . . . Utility 1 | . . . . . . 1 Weapon 4 | . 2 1 . . . 1 Highest Loss Streak 3 | . 3 1 . . . 3 To Critical Strikes . | . . . . . . . Average Backups 6 | 1 6 8 8 7 7 6 Power . | . . . . . . . Propulsion 2 | . 2 2 2 2 2 2 Utility 2 | . 1 3 4 4 3 2 Weapon 1 | . 1 1 1 . 1 1 Tool/Special . | . . . . . . . Unused Backups 11 | . 2 1 1 . . 7 Power . | . . . . . . . Propulsion 6 | . 2 1 . . . 3 Utility 4 | . . . 1 . . 3 Weapon . | . . . . . . . Tool/Special 1 | . . . . . . 1 Average Slot Usage (%) 76 | . 85 71 71 82 66 43 Engine 11 | . 11 14 14 14 9 4 Treads 14 | . 17 14 14 14 9 3 Device 3 | . 4 . . . 7 5 Storage 13 | . 14 14 14 14 9 6 Protection 10 | . 9 14 14 14 9 4 Energy Gun 2 | . 5 . . . . . Ballistic Gun 7 | . 13 . . . . . Launcher 10 | . 7 14 14 25 18 8 Peak Build Rating 22 | 9 9 7 7 9 19 22 Average Rating 7 | 6 6 6 6 8 16 12 On Entrance 8 | . 9 7 6 7 9 19 Avg Prop Armor Cover (%) . | . . . . . . . Naked Turns . | . . . . . . . Heaviest Build 22 | 12 15 14 14 18 22 22 Greatest Support 40 | 40 40 20 20 20 20 20 Greatest Overweight (x) 4 | . . . . . 1 4 Average Overweight (x) . | . . . . . . . Largest Inventory Capacity 8 | 8 8 8 8 8 8 8 Average Capacity 7 | 7 8 8 8 8 8 6 Most Carried 8 | 3 8 8 8 8 8 8 Average Carried 6 | 1 6 8 8 7 7 6 Final Capacity 8 | 8 8 8 8 8 8 5 Final Carried 8 | 3 8 8 8 8 8 5 Class Distribution -------------------- 100% | Mutant Dominant Class ---------------- Mutant | -10/Materials Mutant | -10/Mines Mutant | -10/Exiles Mutant | -9/Mines Mutant | -8/Materials Mutant | -8/Garrison Resources | -11 -10 -10 -10 -9 -8 -8 ----------- Run | Yrd Mat Min Exi Min Mat Gar Matter Collected 483 | 160 299 6 . . . 18 Remotely . | . . . . . . . Salvage Created 676 | 122 519 6 . . . 29 Parts 62 | 9 44 1 . . . 8 Haulers Intercepted 1 | . 1 . . . . . Recyclers Shooed 2 | 1 1 . . . . . Parts Field Recycled . | . . . . . . . Retrieved Matter . | . . . . . . . Parts Self-Destructed . | . . . . . . . Prevented . | . . . . . . . Parts Restored . | . . . . . . . Kills | -11 -10 -10 -10 -9 -8 -8 ------- Run | Yrd Mat Min Exi Min Mat Gar Combat Hostiles Destroyed 26 | . 20 2 . . . 4 Melee 1 | . . . . . . 1 Guns 7 | . 7 . . . . . Cannons 3 | . 3 . . . . . AOE 14 | . 10 2 . . . 2 Classes Destroyed 10 | 2 7 . . . . 1 Worker 1 | . 1 . . . . . Builder 2 | . 2 . . . . . Tunneler 3 | 3 . . . . . . Hauler 1 | . 1 . . . . . Recycler 2 | 1 1 . . . . . Operator 2 | . 2 . . . . . Watcher 1 | . 1 . . . . . Swarmer 14 | . 9 2 . . . 3 Cutter 1 | . . . . . . 1 Grunt 11 | . 11 . . . . . Best Kill Streak 7 | 2 7 2 . . . 4 Combat Bots Only 6 | . 6 2 . . . 4 Max Kills in Single Turn 3 | 1 3 1 . . . 2 Gunslinging . | . . . . . . . Exploded 2 | . 2 1 . . . 2 Melee 1 | . . . . . . 1 Uniques/NPCs Destroyed . | . . . . . . . Combat | -11 -10 -10 -10 -9 -8 -8 -------- Run | Yrd Mat Min Exi Min Mat Gar Hostile Shots Fired 197 | . 84 3 . . . 110 Missed 51 | . 20 2 . . . 29 Hits 146 | . 64 1 . . . 81 Melee 15 | . . . . . . 15 Projectile 131 | . 64 1 . . . 66 Critical Strikes 11 | . 1 . . . . 10 Damage Taken 1951 | . 811 22 . . . 1118 Core 615 | . 56 5 . . . 554 Absorbed by Shields . | . . . . . . . Regen/Repaired (Parts) 55 | . 55 . . . . . Core Remaining (%) 87 | 100 . . . 75 . . Volleys Fired 106 | 17 85 3 . . . 1 Largest 2 | 2 2 2 . . . 1 Hottest 140 | 60 140 50 . . . 33 Shots Fired 169 | 34 130 4 . . . 1 Gun 142 | 34 107 1 . . . . Cannon . | . . . . . . . Launcher 16 | . 12 3 . . . 1 Special 11 | . 11 . . . . . Kinetic 96 | 17 78 1 . . . . Thermal 11 | . 11 . . . . . Explosive 16 | . 12 3 . . . 1 Electromagnetic 46 | 17 29 . . . . . Robot Hit Streak 8 | 5 8 1 . . . 2 Robot Miss Streak 6 | 4 6 3 . . . . Penetration Max . | . . . . . . . Secondary Targets 1 | . 1 . . . . . Max Gunslinging Chain 1 | . 1 . . . . . Shots Hit Robots 93 | 19 69 1 . . . 4 Core Hits 63 | 7 46 5 . 1 . 4 Critical Kills . | . . . . . . . Critical Parts Destroyed . | . . . . . . . Critical Strikes . | . . . . . . . Melee Attacks 8 | . . . . . . 8 Impact 8 | . . . . . . 8 Slashing . | . . . . . . . Piercing . | . . . . . . . Sneak Attacks . | . . . . . . . Combat Hostiles . | . . . . . . . Follow-up Attacks . | . . . . . . . Damage Inflicted 2268 | 223 1483 177 . 2 . 383 Guns 774 | 218 556 . . . . . Cannons . | . . . . . . . Explosions 1227 | . 801 175 . . . 251 Melee 132 | . . . . . . 132 Ramming 15 | 5 6 2 . 2 . . Kinetic 386 | 82 304 . . . . . Thermal 141 | . 141 . . . . . Explosive 1206 | . 780 175 . . . 251 Electromagnetic 388 | 136 252 . . . . . Impact 132 | . . . . . . 132 Slashing . | . . . . . . . Piercing . | . . . . . . . Highest Corruption 2 | . 2 2 2 2 . . Average Corruption 2 | . 2 2 2 2 . . Corruption Purged . | . . . . . . . Corruption Blocked . | . . . . . . . Effects 22 | . 12 4 6 . . . Message Errors 6 | . 3 1 2 . . . Matter Fused 5 | . 3 1 1 . . . Heat Flow Errors 2 | . 2 . . . . . Energy Discharges 3 | . 1 1 1 . . . Data Loss (minor) 3 | . 2 . 1 . . . Data Loss (major) 2 | . . 1 1 . . . Alerts 1 | . 1 . . . . . Overload Shots . | . . . . . . . Overflow Damage 187 | . 134 . . . . 53 Projectiles . | . . . . . . . Explosions 137 | . 134 . . . . 3 Melee 50 | . . . . . . 50 Knockbacks . | . . . . . . . Impact . | . . . . . . . Kinetic . | . . . . . . . Secondary . | . . . . . . . Self-Inflicted Damage 257 | . 204 15 . . . 38 Shots 6 | . 4 1 . . . 1 Rammed 6 | 1 2 1 . 2 . . Targets Rammed 7 | 1 3 1 . 2 . . Kicked . | . . . . . . . Crushed 1 | . 1 . . . . . Highest Temperature 376 | 40 376 16 . . . 26 Average Temperature 61 | 13 69 12 . . . 18 Received Heat Transfer 585 | . 198 . . . . 387 Effects 4 | . 4 . . . . . Shutdowns 1 | . 1 . . . . . Energy Bleed 1 | . 1 . . . . . Interference 1 | . 1 . . . . . Matter Decay 1 | . 1 . . . . . Siege Activations . | . . . . . . . Martial Activations . | . . . . . . . Shielding Activations . | . . . . . . . Robots Disrupted . | . . . . . . . Combat Hostiles . | . . . . . . . Robots Corrupted 1 | . . . . . . 1 Combat Hostiles 1 | . . . . . . 1 Parts Fried 1 | . . . . . . 1 Impact Corruptions 2 | . . . . . . 2 Robots Melted . | . . . . . . . Combat Hostiles . | . . . . . . . Parts Melted . | . . . . . . . Heat Transferred 250 | . 250 . . . . . Parts Sabotaged . | . . . . . . . Parts Stolen . | . . . . . . . Parts Stripped . | . . . . . . . Power Chain Reactions 1 | . 1 . . . . . Alert | -11 -10 -10 -10 -9 -8 -8 ------- Run | Yrd Mat Min Exi Min Mat Gar Maximum Alert Level 1 | . 1 . . . . . Low Security (%) 61 | 100 34 100 . 100 100 100 Level 1 38 | . 65 . . . . . Level 2 . | . . . . . . . Level 3 . | . . . . . . . Level 4 . | . . . . . . . Level 5 . | . . . . . . . High Security . | . . . . . . . Max Security . | . . . . . . . Peak Influence 387 | 5 387 131 . . . 133 Initial 82 | . . 82 . . . . Average 145 | . 228 72 . . . 40 Influence Increases 992 | 20 700 59 . . . 213 Destroy 0b10 Robot/C 520 | . 400 40 . . . 80 Destroy 0b10 Robot/NC 60 | 20 40 . . . . . Destroy Leader 74 | . 74 . . . . . Successful Hack 15 | . 15 . . . . . Disable Machine 75 | . 75 . . . . . Anti-Garrison Action 50 | . . . . . . 50 Destroy Structure 93 | . 66 19 . . . 8 Partial Spotted 15 | . 15 . . . . . Lose Combat Pursuer 90 | . 15 . . . . 75 Influence Decreases 859 | 20 488 260 11 . . 80 Entered New Map 141 | . . 130 11 . . . Time Decay 578 | 20 438 120 . . . . Lost Part 90 | . 50 10 . . . 30 Lost Ally 50 | . . . . . . 50 Squads Dispatched 4 | . 4 . . . . . Investigation 2 | . 2 . . . . . Extermination . | . . . . . . . Reinforcement 2 | . 2 . . . . . Assault . | . . . . . . . Garrison . | . . . . . . . Intercept . | . . . . . . . Searches Triggered . | . . . . . . . Construction Impeded . | . . . . . . . Haulers Reinforced . | . . . . . . . Active Scanning Responses . | . . . . . . . Cargo Convoy Interrupts . | . . . . . . . Stealth | -11 -10 -10 -10 -9 -8 -8 --------- Run | Yrd Mat Min Exi Min Mat Gar Distress Signals 2 | . 2 . . . . . Communications Jammed . | . . . . . . . Distress Signals . | . . . . . . . Times Spotted 57 | . 41 2 . . . 14 Peak Tracking Total 8 | . 5 2 . . . 8 Tactical Retreats 3 | . 1 . . . . 2 Traps | -11 -10 -10 -10 -9 -8 -8 ------- Run | Yrd Mat Min Exi Min Mat Gar Traps Triggered 5 | . 1 . . . . 4 Indirectly . | . . . . . . . Trap Hack Attempts . | . . . . . . . Triggered . | . . . . . . . Disarmed . | . . . . . . . Reprogrammed . | . . . . . . . Reused . | . . . . . . . Traps Extracted . | . . . . . . . Installed . | . . . . . . . Triggered . | . . . . . . . Machines | -11 -10 -10 -10 -9 -8 -8 ---------- Run | Yrd Mat Min Exi Min Mat Gar Machines Disabled 5 | . 5 . . . . . Max in Single Turn 3 | . 3 . . . . . Machines Repaired . | . . . . . . . Machines Dismantled . | . . . . . . . Machines Sabotaged . | . . . . . . . Overloaded Fab Kills . | . . . . . . . Hacking | -11 -10 -10 -10 -9 -8 -8 --------- Run | Yrd Mat Min Exi Min Mat Gar Machines Accessed 11 | . 7 1 1 . 1 1 Terminals 6 | . 5 . . . . 1 Fabricators . | . . . . . . . Repair Stations 1 | . 1 . . . . . Recycling Units 1 | . 1 . . . . . Scanalyzers . | . . . . . . . Garrison Access 1 | . . . . . 1 . Total Hacks 21 | . 16 1 1 . 1 2 Successful 10 | . 7 1 1 . 1 . Failed 11 | . 9 . . . . 2 Catastrophic 2 | . 1 . . . . 1 Database Lockouts . | . . . . . . . Manual 8 | . 7 . 1 . . . Terminals 12 | . 10 . . . . 2 Fabricators . | . . . . . . . Repair Stations 3 | . 3 . . . . . Recycling Units 3 | . 3 . . . . . Scanalyzers . | . . . . . . . Garrison Access 1 | . . . . . 1 . Terminal Hacks 5 | . 3 1 1 . . . Open Door 1 | . . 1 . . . . Branch Access Points 1 | . 1 . . . . . Hauler Manifests 1 | . 1 . . . . . Registered Components 1 | . 1 . . . . . Proto ID Catalog 1 | . . . 1 . . . Fabricator Hacks . | . . . . . . . Repair Station Hacks 2 | . 2 . . . . . Scan Component 1 | . 1 . . . . . Repair 1 | . 1 . . . . . Recycling Unit Hacks 1 | . 1 . . . . . Retrieve Components 1 | . 1 . . . . . Scanalyzer . | . . . . . . . Garrison Access Hacks 1 | . . . . . 1 . Unlock Access 1 | . . . . . 1 . Unauthorized Hacks 1 | . 1 . . . . . Terminals 1 | . 1 . . . . . Assimilate 1 | . 1 . . . . . Fabricators . | . . . . . . . Repair Stations . | . . . . . . . Recycling Units . | . . . . . . . Scanalyzers . | . . . . . . . Garrison Access . | . . . . . . . Data Cores Recovered 1 | . 1 . . . . . Used . | . . . . . . . Hacking Detections 5 | . 3 . . . 1 1 Full Trace Events 2 | . 1 . . . . 1 Feedback Events . | . . . . . . . Feedback Blocked . | . . . . . . . Robot Schematics Acquired . | . . . . . . . Robots Built . | . . . . . . . Authchips . | . . . . . . . Time . | . . . . . . . Total Robot Build Rating . | . . . . . . . Part Schematics Acquired . | . . . . . . . Parts Built . | . . . . . . . Authchips . | . . . . . . . Time . | . . . . . . . Total Part Build Rating . | . . . . . . . Part Studies Acquired . | . . . . . . . Parts Repaired 1 | . 1 . . . . . Time 26 | . 26 . . . . . Parts Recycled . | . . . . . . . Recycled Matter . | . . . . . . . Retrieved Matter . | . . . . . . . Retrieved Components 9 | . 9 . . . . . Parts Scanalyzed . | . . . . . . . Part Schematics Acquired . | . . . . . . . Parts Damaged . | . . . . . . . Bothacking | -11 -10 -10 -10 -9 -8 -8 ------------ Run | Yrd Mat Min Exi Min Mat Gar Used RIF Installer . | . . . . . . . Robots Hacked . | . . . . . . . Non-combat . | . . . . . . . Combat . | . . . . . . . Robot Hacks Applied . | . . . . . . . Relay Couplers Released . | . . . . . . . Fabnet Peak Effective % . | . . . . . . . Robots Rewired . | . . . . . . . Allies Hacked . | . . . . . . . Hacks Repelled . | . . . . . . . Allies | -11 -10 -10 -10 -9 -8 -8 -------- Run | Yrd Mat Min Exi Min Mat Gar Total Allies 1 | . . 1 . . . . Largest Group 1 | . . 1 . . . . Highest-Rated Group 31 | . . 31 . . . . Highest-Rated Ally 31 | . . 31 . . . . Total Orders . | . . . . . . . Ally Attacks 5 | . . . . . . 5 Total Damage 25 | . . . . . . 25 Kills . | . . . . . . . Allies Corrupted . | . . . . . . . Allies Melted . | . . . . . . . Intel | -11 -10 -10 -10 -9 -8 -8 ------- Run | Yrd Mat Min Exi Min Mat Gar Active Infowar (turns) 465 | 96 369 . . . . . Terrain 465 | 96 369 . . . . . Robot Analysis Total . | . . . . . . . Derelict Logs Recovered . | . . . . . . . Drone Launches 4 | . . . . . . 4 Drone Recoveries 1 | . . . . . . 1 Exploration | -11 -10 -10 -10 -9 -8 -8 ------------- Run | Yrd Mat Min Exi Min Mat Gar Turns Passed 2367 | 203 1156 250 376 135 44 203 Spaces Moved 1281 | 94 546 151 235 81 19 155 Core 135 | 8 . . . . . 127 Treads 1146 | 86 546 151 235 81 19 28 Legs . | . . . . . . . Wheels . | . . . . . . . Hover . | . . . . . . . Flight . | . . . . . . . Fastest Speed 50 | 50 160 160 160 160 160 50 Average Speed 151 | 150 160 160 160 160 218 92 Slowest Speed 250 | 160 160 160 160 160 240 250 Overloaded Moves . | . . . . . . . Propulsion Burnouts . | . . . . . . . Robots Hopped . | . . . . . . . Potential Cave-ins . | . . . . . . . Cave-ins Triggered . | . . . . . . . Exploration Rate (%) 32 | 5 73 32 62 29 4 24 Regions Visited 6 Branch Regions 3 Pre-discovered Areas 1 | . . 1 . . . . Known Exits Taken 2 | . 1 . . . 1 . Unknown Exits Taken 4 | 1 . 1 1 1 . . Scrap Searched . | . . . . . . . Spaces Dug 53 | . 53 . . . . . Terrain Destroyed 131 | . 98 30 . . . 3 Melee . | . . . . . . . Projectile 3 | . 3 . . . . . AOE 128 | . 95 30 . . . 3 Terrain Rammed . | . . . . . . . Walls Destroyed . | . . . . . . . Machines Disabled . | . . . . . . . Actions | -11 -10 -10 -10 -9 -8 -8 --------- Run | Yrd Mat Min Exi Min Mat Gar Total 1509 | 121 691 156 236 85 22 198 Wait 37 | . 29 . . . . 8 Move 1276 | 94 545 150 234 80 18 155 Hop . | . . . . . . . Pick Up 17 | 3 9 1 1 1 2 . Fast Attach 15 | 7 4 . . 1 . 3 Attach 5 | . 2 . . . 2 1 Detach . | . . . . . . . Swap 10 | . 9 . . . . 1 Drop 8 | . 5 1 1 1 . . Fire 106 | 17 85 3 . . . 1 Melee 8 | . . . . . . 8 Ram . | . . . . . . . Kick . | . . . . . . . Crush 6 | . 3 1 . 2 . . Escape Stasis 21 | . . . . . . 21 Rewire . | . . . . . . . Trap . | . . . . . . . Miscellaneous . | . . . . . . . Route ------- -11/Scrapyard -10/Materials (discovered 5 exits: [*Mat x3] / *Min x2) -10/Mines (discovered 4 exits: [*Mat x2] / *Exi / [*Sub]) -10/Exiles -9/Mines -8/Materials -8/Garrison History --------- Turn | Location | Event 5 | -11/Scrapyard | Discovered new exit (range 16) 204 | -11/Scrapyard | Entered Materials 301 | -10/Materials | Build established: Mutant 305 | -10/Materials | Lost 3 parts (1p1n1w) 338 | -10/Materials | Discovered new exit (range 7) 461 | -10/Materials | Discovered new exit (range 9) 695 | -10/Materials | Discovered new exit (range 5) 785 | -10/Materials | Identified exit to Mines 1335 | -10/Materials | Repaired Grenade Launcher 1360 | -10/Materials | Entered Mines 1366 | -10/Mines | Escorted by a lone wolf Derelict 1374 | -10/Mines | Met a Derelict bent on vengeance 1386 | -10/Mines | Learned location of Storage (-9) 1391 | -10/Mines | Discovered new exit (range 8) 1407 | -10/Mines | Discovered new exit (range 10) 1427 | -10/Mines | Found the Drone Emporium 1433 | -10/Mines | Found Prototype Device 1460 | -10/Mines | Discovered new exit (range 15) 1577 | -10/Mines | Found a damaged Exp. Sensor Array with a note attached 1604 | -10/Mines | Deemed a non-threat by the Exiles lab entrance 1604 | -10/Mines | Discovered new exit (range 5) 1610 | -10/Mines | Entered Exiles 1610 | -10/Exiles | Accompanied by 1 ally 1649 | -10/Exiles | Met 8R-AWN 1678 | -10/Exiles | Met EX-HEX 1735 | -10/Exiles | Met EX-BIN 1754 | -10/Exiles | Aligned with FarCom system 1756 | -10/Exiles | Given EX-Vault access code 1793 | -10/Exiles | Opened EX-Vault 1809 | -10/Exiles | Found Trap Reconfigurator 1842 | -10/Exiles | Warned to stay clear of 0b10 Research branches 1886 | -10/Exiles | Met EX-DEC 1972 | -10/Exiles | Discovered new exit (range 10) 1986 | -10/Exiles | Left Exiles lab with Trap Reconfigurator 1986 | -10/Exiles | Entered Mines 1998 | -9/Mines | Received a Rocket Launcher from a helpful Derelict 2108 | -9/Mines | Discovered new exit (range 9) 2121 | -9/Mines | Entered Materials 2121 | -8/Materials | Evolved 4 slots: Propulsion x2, Utility x2 2129 | -8/Materials | Identified Thief Drone Bay 2162 | -8/Materials | Identified exit to Garrison 2165 | -8/Materials | Entered Garrison 2278 | -8/Garrison | Core integrity fell below 50% 2288 | -8/Garrison | Core integrity fell below 20% 2324 | -8/Garrison | Lost 3 parts (1p1u1w) 2368 | -8/Garrison | Destroyed by S-10 Pest with Light Assault Rifle Last Messages --------------- 02347_ A bubble of rippling energy engulfs the area. 02347_ Field strength at 94. 02347_ Field strength at 88. 02348_ Field strength at 82. 02349_ Field strength at 76. 02350_ Field strength at 70. 02351_ Field strength at 64. 02352_ Field strength at 58. 02353_ Field strength at 52. 02354_ Field strength at 46. 02355_ Field strength at 40. 02356_ Field strength at 34. 02357_ Field strength at 28. 02358_ Field strength at 22. 02359_ Field strength at 16. 02360_ Field strength at 10. 02361_ Field strength at 4. 02362_ Stasis field depleted. 02366_ Acquired 10 matter. Map ----- +----------------------------------------------------+ | ?????????????????????????????????????????????????? | | ?????????????????????????????????????????????????? | | #????????????????????????????????????????????????? | | #?######?????????????????????????????????????????? | | ??# #?????????????????????????????????????????? | | #?# #?????????????????????????????????????????? | | #?# #?????????????????????????????????????????? | | #?### #?????????????????????????????????????????? | | #???# #?????????????????????????????????????????? | | #???# #?????????????????????????????????????????? | | #???# #?????????????????????????????????????????? | | ##### #?????????????????????????????????????????? | | ##############????????????????????????????? | | ##### ^ #????????????????????????????? | | #???# #????????????????????????????? | | #???############## #????????????????????????????? | | #????????????????# #????????????????????????????? | | #????????????????# #????????????????????????????? | | #????????????????# #????????????????????????????? | | #????????????????# #????????????????????????????? | | #????????????????# #######??????????????????????? | | #????????????????# !## #??????????????????????? | | ###?????????????##]=%# s ############ ?????????? | | #"#????????# #### *!==/ ????????? | | "#????????# !=!|* ????????? | | "#????????######[!%/[ @ ????????? | | "#?????????????#*%^#= ## ####??????????????? | | #"#?????????????#g=%## #??? #?????????????????? | | ###???????????? = ????????????????????? | | ??????????????# "?????????????????? | | ??????????????# "?????????????????? | | ??????????????# g "?????????????????? | | ??????????????### ## ## #?????????????????? | | ????????????????# ## #? #?????????????????? | | ????????????????# ?? #?????????????????? | | ????????????????# ? #?????????????????? | | ????????????????# ?? #?????????????????? | | ????????????????## ##""""##?? #?????????????????? | | ?????????????????# ??Y??Y?????#?????????????????? | | ?????????????????? ?????????????????????????????? | | ?????????????????? ?????????????????????????????? | | ?????????????????????????????????????????????????? | | ?????????????????????????????????????????????????? | | ?????????????????????????????????????????????????? | | ?????????????????????????????????????????????????? | | ?????????????????????????????????????????????????? | | ?????????????????????????????????????????????????? | | ?????????????????????????????????????????????????? | | ?????????????????????????????????????????????????? | | ?????????????????????????????????????????????????? | +----------------------------------------------------+ Best States ------------- Heat Dissipation 31 Energy Generation 10 Energy Capacity 125 Matter Stores 206 Matter Capacity 300 Sight Range 16 Terrain Scan Range 16 Terrain Scan Density 10 Armor Coverage 150 Evasion (%) 50 Recoil Reduction 2 Offensive Hacking 10 Item Schematics ----------------- None Robot Schematics ------------------ None Fabricated ------------ Nothing Repaired ---------- Grenade Launcher | 8% | -10/Materials Studied --------- None Alien Tech Used ----------------- None Achievements -------------- None Challenges ------------ None Game ------ Seed ShadingDrainedFlail Manual? 0 Play Time 00:17:41 Cumulative 65.4 hours Start 2026.02.12 @ 12:32:15 End 2026.02.12 @ 12:48:50 Sessions 1 Manual Loads 0 Difficulty Rogue Special Mode None Game No. 113 Rogue 113 Adventurer 0 Explorer 0 Win Type - Total 0 Types 0/0/0/0/0/0/0/0/0/0 Lore% 35 Gallery% 40 Achievement% 29 Wizard Run 0 Options --------- Layout 1 ASCII 0 Keyboard 1 Movement Arrows Keybinds 0 Fullscreen 1 Font 24/Smallcaps Map View 50x35 Zoom Use 0% Tactical HUD 1 Map Filters NONE Filters NONE Steam 1 RUN: 0b74da36-aaf5-49e3-bef6-edfc06d4ac2c